fUST/lending_fUST_20241231
["ID","MTS","AMOUNT","RATE_DAILY","PERIOD"]
[347282347,1735655440636,-540.90178331,0.00019178,2]
[347282348,1735655440645,-502.04092753,0.00019178,2]
[347282349,1735655440654,-500.0,0.00019178,2]
[347282350,1735655440663,-1072.13,0.00019178,2]
[347282351,1735655440673,-500.0,0.00019178,2]
[347282352,1735655440682,-976.96,0.00019178,2]
[347282353,1735655440691,-500.0,0.00019178,2]
[347282354,1735655440701,-500.0,0.00019178,2]
[347282355,1735655440710,-500.0,0.00019178,2]
[347282356,1735655440720,-500.0,0.00019178,2]
[347282357,1735655440730,-500.0,0.00019178,2]
[347282358,1735655440740,-500.0,0.00019178,2]
[347282359,1735655440751,-500.0,0.00019178,2]
[347282360,1735655440760,-502.4643162,0.00019178,2]
[347282361,1735655440770,-500.0,0.00019178,2]
[347282362,1735655440779,-500.0,0.00019178,2]
[347282363,1735655440789,-500.0,0.00019178,2]
[347282364,1735655440798,-500.0,0.00019178,2]
[347282365,1735655440807,-500.84069531,0.00019178,2]
[347282366,1735655440816,-500.0,0.00019178,2]
[347282367,1735655440826,-500.0,0.00019178,2]
[347282368,1735655440835,-514.47,0.00019178,2]
[347282369,1735655440845,-500.0,0.00019178,2]
[347282370,1735655440855,-500.0,0.00019178,2]
[347282371,1735655440864,-500.0,0.00019178,2]
[347282372,1735655440874,-500.0,0.00019178,2]
[347282373,1735655440883,-500.0,0.00019178,2]
[347282374,1735655440892,-500.0,0.00019178,2]
[347282375,1735655440901,-500.0,0.00019178,2]
[347282376,1735655440911,-500.0,0.00019178,2]
[347282377,1735655440920,-500.0,0.00019178,2]
[347282378,1735655440930,-556.71,0.00019178,2]
[347282379,1735655440939,-500.0,0.00019178,2]
[347282380,1735655440949,-500.0,0.00019178,2]
[347282381,1735655440958,-500.0,0.00019178,2]
[347282382,1735655440968,-500.0,0.00019178,2]
[347282383,1735655440978,-500.42119988,0.00019178,2]
[347282384,1735655440987,-500.0,0.00019178,2]
[347282385,1735655440996,-500.0,0.00019178,2]
[347282386,1735655441006,-500.0,0.00019178,2]
[347282387,1735655441017,-500.0,0.00019178,2]
[347282388,1735655441026,-500.0,0.00019178,2]
[347282389,1735655441036,-500.0,0.00019178,2]
[347282390,1735655441045,-500.0,0.00019178,2]
[347282391,1735655441055,-885.61,0.00019178,2]
[347282392,1735655441064,-500.0,0.00019178,2]
[347282393,1735655441074,-500.0,0.00019178,2]
[347282394,1735655441083,-500.0,0.00019178,2]
[347282395,1735655441093,-500.0,0.00019178,2]
[347282396,1735655441102,-816.73,0.00019178,2]
[347282397,1735655441111,-500.0,0.00019178,2]
[347282398,1735655441120,-500.0,0.00019178,2]
[347282399,1735655441130,-500.0,0.00019178,2]
[347282400,1735655441140,-500.0,0.00019178,2]
[347282401,1735655441149,-743.7,0.00019178,2]
[347282402,1735655441159,-500.0,0.00019178,2]
[347282403,1735655441168,-2907.35,0.00019178,2]
[347282404,1735655441178,-500.0,0.00019178,2]
[347282405,1735655441188,-9274.5,0.00019178,2]
[347282406,1735655441198,-500.0,0.00019178,2]
[347282407,1735655441208,-500.0,0.00019178,2]
[347282408,1735655441217,-500.0,0.00019178,2]
[347282409,1735655441227,-536.82054436,0.00019178,2]
[347282410,1735655441236,-744.3,0.00019178,2]
[347282411,1735655441246,-500.0,0.00019178,2]
[347282412,1735655441256,-500.0,0.00019178,2]
[347282413,1735655441266,-440.6564028,0.00019178,2]
[347282414,1735655441276,-500.0,0.00019178,2]
[347282415,1735655441286,-500.0,0.00019178,2]
[347282416,1735655441295,-500.0,0.00019178,2]
[347282417,1735655441305,-500.0,0.00019178,2]
[347282418,1735655441315,-500.0,0.00019178,2]
[347282419,1735655441324,-2632.0,0.00019178,2]
[347282420,1735655441334,-281.24926534,0.00019178,2]
[347282421,1735655441344,-224.02691309,0.00019178,2]
[347282422,1735655441354,-500.0,0.00019178,2]
[347282423,1735655441363,-500.0,0.00019178,2]
[347282424,1735655441373,-500.0,0.00019178,2]
[347282425,1735655441382,-223.16499015,0.00019178,2]
[347282426,1735655441392,-500.0,0.00019178,2]
[347282427,1735655441402,-500.0,0.00019178,2]
[347282428,1735655441411,-500.0,0.00019178,2]
[347282429,1735655441421,-500.0,0.00019178,2]
[347282430,1735655441431,-42887.87,0.00019178,2]
[347282431,1735655441441,-500.34990809,0.00019178,2]
[347282432,1735655441450,-500.0,0.00019178,2]
[347282433,1735655441460,-500.0,0.00019178,2]
[347282434,1735655441470,-657.61,0.00019178,2]
[347282435,1735655441480,-500.0,0.00019178,2]
[347282436,1735655441490,-500.0,0.00019178,2]
[347282437,1735655441501,-500.0,0.00019178,2]
[347282438,1735655441511,-500.0,0.00019178,2]
[347282439,1735655441521,-500.0,0.00019178,2]
[347282440,1735655441532,-500.0,0.00019178,2]
[347282441,1735655441543,-500.0,0.00019178,2]
[347282442,1735655441553,-500.0,0.00019178,2]
[347282443,1735655441563,-714.01,0.00019178,2]
[347282444,1735655441683,-844.93,0.00019178,2]
[347282445,1735655441694,-500.0,0.00019178,2]
[347282446,1735655441703,-1233.43,0.00019178,2]
[347282447,1735655441712,-911.49,0.00019178,2]
[347282448,1735655441721,-500.0,0.00019178,2]
[347282449,1735655441731,-500.0,0.00019178,2]
[347282450,1735655441739,-500.0,0.00019178,2]
[347282451,1735655441751,-1205.45,0.00019178,2]
[347282452,1735655441759,-643.14,0.00019178,2]
[347282453,1735655441769,-664.83,0.00019178,2]
[347282454,1735655441778,-500.0,0.00019178,2]
[347282455,1735655441787,-500.0,0.00019178,2]
[347282456,1735655441796,-500.0,0.00019178,2]
[347282457,1735655441805,-500.0,0.00019178,2]
[347282458,1735655441815,-500.0,0.00019178,2]
[347282459,1735655441824,-511.48472186,0.00019178,2]
[347282460,1735655441833,-1494.75,0.00019178,2]
[347282461,1735655441843,-500.0,0.00019178,2]
[347282462,1735655441852,-500.0,0.00019178,2]
[347282463,1735655441861,-529.44,0.00019178,2]
[347282464,1735655441871,-500.0,0.00019178,2]
[347282465,1735655441880,-500.0,0.00019178,2]
[347282466,1735655441889,-500.0,0.00019178,2]
[347282467,1735655441899,-500.0,0.00019178,2]
[347282468,1735655441908,-528.84,0.00019178,2]
[347282469,1735655441917,-1251.53,0.00019178,2]
[347282470,1735655441927,-500.0,0.00019178,2]
[347282471,1735655441936,-500.0,0.00019178,2]
[347282472,1735655441945,-500.0,0.00019178,2]
[347282473,1735655441954,-500.0,0.00019178,2]
[347282474,1735655441963,-500.0,0.00019178,2]
[347282475,1735655441972,-500.0,0.00019178,2]
[347282476,1735655441981,-648.71,0.00019178,2]
[347282477,1735655441990,-500.0,0.00019178,2]
[347282478,1735655442001,-280.76598859,0.00019178,2]
[347282479,1735655442010,-500.0,0.00019178,2]
[347282480,1735655442019,-500.0,0.00019178,2]
[347282481,1735655442029,-552.76,0.00019178,2]
[347282482,1735655442038,-670.59,0.00019178,2]
[347282483,1735655442047,-500.0,0.00019178,2]
[347282484,1735655442057,-573.50295927,0.00019178,2]
[347282485,1735655442066,-500.0,0.00019178,2]
[347282486,1735655442075,-334.14173577,0.00019178,2]
[347282487,1735655442085,-502.14998847,0.00019178,2]
[347282488,1735655442094,-500.0,0.00019178,2]
[347282489,1735655442103,-500.0,0.00019178,2]
[347282490,1735655442112,-361.25277987,0.00019178,2]
[347282491,1735655442121,-500.0,0.00019178,2]
[347282492,1735655442130,-500.0,0.00019178,2]
[347282493,1735655442139,-500.0,0.00019178,2]
[347282494,1735655442148,-500.0,0.00019178,2]
[347282495,1735655442157,-500.0,0.00019178,2]
[347282496,1735655442166,-500.0,0.00019178,2]
[347282497,1735655442175,-500.0,0.00019178,2]
[347282498,1735655442184,-500.0,0.00019178,2]
[347282499,1735655442193,-424.98947537,0.00019178,2]
[347282500,1735655442203,-850.86,0.00019178,2]
[347282501,1735655442212,-500.0,0.00019178,2]
[347282502,1735655442222,-500.0,0.00019178,2]
[347282503,1735655442231,-500.0,0.00019178,2]
[347282504,1735655442240,-500.0,0.00019178,2]
[347282505,1735655442251,-631.92,0.00019178,2]
[347282506,1735655442261,-500.0,0.00019178,2]
[347282507,1735655442270,-500.0,0.00019178,2]
[347282508,1735655442280,-500.0,0.00019178,2]
[347282509,1735655442289,-500.0,0.00019178,2]
[347282510,1735655442298,-1270.39,0.00019178,2]
[347282511,1735655442308,-500.0,0.00019178,2]
[347282512,1735655442318,-500.0,0.00019178,2]
[347282513,1735655442327,-500.0,0.00019178,2]
[347282514,1735655442336,-500.0,0.00019178,2]
[347282515,1735655442345,-500.0,0.00019178,2]
[347282516,1735655442354,-500.0,0.00019178,2]
[347282517,1735655442363,-500.0,0.00019178,2]
[347282518,1735655442372,-500.0,0.00019178,2]
[347282519,1735655442382,-500.0,0.00019178,2]
[347282520,1735655442391,-4898.56,0.00019178,2]
[347282521,1735655442401,-500.0,0.00019178,2]
[347282522,1735655442410,-500.43113122,0.00019178,2]
[347282523,1735655442419,-500.0,0.00019178,2]
[347282524,1735655442428,-593.16,0.00019178,2]
[347282525,1735655442438,-500.0,0.00019178,2]
[347282526,1735655442447,-500.0,0.00019178,2]
[347282527,1735655442456,-500.0,0.00019178,2]
[347282528,1735655442466,-500.0,0.00019178,2]
[347282529,1735655442476,-500.0,0.00019178,2]
[347282530,1735655442485,-500.0,0.00019178,2]
[347282531,1735655442494,-229.82,0.00019178,2]
[347282532,1735655442505,-500.0,0.00019178,2]
[347282533,1735655442514,-500.0,0.00019178,2]
[347282534,1735655442523,-501.3379503,0.00019178,2]
[347282535,1735655442534,-500.0,0.00019178,2]
[347282536,1735655442544,-500.0,0.00019178,2]
[347282537,1735655442553,-521.51416532,0.00019178,2]
[347282538,1735655442563,-500.65572013,0.00019178,2]
[347282539,1735655442572,-500.0,0.00019178,2]
[347282540,1735655442582,-501.00418216,0.00019178,2]
[347282541,1735655442592,-500.0,0.00019178,2]
[347282542,1735655442601,-500.0,0.00019178,2]
[347282543,1735655442610,-500.0,0.00019178,2]
[347282544,1735655442620,-500.0,0.00019178,2]
[347282545,1735655442629,-500.0,0.00019178,2]
[347282546,1735655442638,-500.0,0.00019178,2]
[347282547,1735655442647,-500.0,0.00019178,2]
[347282548,1735655442656,-651.25,0.00019178,2]
[347282549,1735655442665,-500.0,0.00019178,2]
[347282550,1735655442674,-501.10789209,0.00019178,2]
[347282551,1735655442684,-639.6205156,0.00019178,2]
[347282552,1735655442693,-500.0,0.00019178,2]
[347282553,1735655442702,-806.92,0.00019178,2]
[347282554,1735655442712,-500.0,0.00019178,2]
[347282555,1735655442721,-500.0,0.00019178,2]
[347282556,1735655442730,-3066.78,0.00019178,2]
[347282557,1735655442739,-500.0,0.00019178,2]
[347282558,1735655442748,-500.0,0.00019178,2]
[347282559,1735655442758,-500.0,0.00019178,2]
[347282560,1735655442767,-1029.11,0.00019178,2]
[347282561,1735655442777,-501.84941109,0.00019178,2]
[347282562,1735655442787,-500.0,0.00019178,2]
[347282563,1735655442797,-686.34,0.00019178,2]
[347282564,1735655442806,-500.0,0.00019178,2]
[347282565,1735655442815,-790.54,0.00019178,2]
[347282566,1735655442824,-680.23,0.00019178,2]
[347282567,1735655442833,-500.0,0.00019178,2]
[347282568,1735655442842,-501.99185535,0.00019178,2]
[347282569,1735655442851,-500.0,0.00019178,2]
[347282570,1735655442860,-500.0,0.00019178,2]
[347282571,1735655442869,-500.0,0.00019178,2]
[347282572,1735655442879,-598.94,0.00019178,2]
[347282573,1735655442888,-500.0,0.00019178,2]
[347282574,1735655442896,-500.0,0.00019178,2]
[347282575,1735655442906,-505.36973935,0.00019178,2]
[347282576,1735655442915,-504.29554481,0.00019178,2]
[347282577,1735655442924,-500.0,0.00019178,2]
[347282578,1735655442933,-505.56475649,0.00019178,2]
[347282579,1735655442942,-500.0,0.00019178,2]
[347282580,1735655442952,-500.0,0.00019178,2]
[347282581,1735655442961,-500.0,0.00019178,2]
[347282582,1735655442970,-466.51151847,0.00019178,2]
[347282583,1735655442979,-7087.47,0.00019178,2]
[347282584,1735655442988,-500.0,0.00019178,2]
[347282585,1735655442997,-500.0,0.00019178,2]
[347282586,1735655443008,-500.0,0.00019178,2]
[347282587,1735655443017,-500.0,0.00019178,2]
[347282588,1735655443026,-2301.54,0.00019178,2]
[347282589,1735655443035,-500.0,0.00019178,2]
[347282590,1735655443045,-500.0,0.00019178,2]
[347282591,1735655443054,-500.0,0.00019178,2]
[347282592,1735655443063,-1368.06,0.00019178,2]
[347282593,1735655443072,-971.25,0.00019178,2]
[347282594,1735655443082,-500.0,0.00019178,2]
[347282595,1735655443091,-500.0,0.00019178,2]
[347282596,1735655443101,-500.0,0.00019178,2]
[347282597,1735655443110,-524.95170891,0.00019178,2]
[347282598,1735655443120,-500.0,0.00019178,2]
[347282599,1735655443129,-500.0,0.00019178,2]
[347282600,1735655443139,-500.0,0.00019178,2]
[347282601,1735655443150,-500.0,0.00019178,2]
[347282602,1735655443159,-500.0,0.00019178,2]
[347282603,1735655443168,-500.0,0.00019178,2]
[347282604,1735655443178,-473.48,0.00019178,2]
[347282605,1735655443187,-500.0,0.00019178,2]
[347282606,1735655443196,-500.0,0.00019178,2]
[347282607,1735655443205,-500.0,0.00019178,2]
[347282608,1735655443214,-533.71,0.00019178,2]
[347282609,1735655443224,-710.13,0.00019178,2]
[347282611,1735655443233,-611.47196186,0.00019178,2]
[347282613,1735655443242,-500.0,0.00019178,2]
[347282614,1735655443253,-500.0,0.00019178,2]
[347282616,1735655443262,-1527.97,0.00019178,2]
[347282617,1735655443271,-503.45526659,0.00019178,2]
[347282618,1735655443280,-500.0,0.00019178,2]
[347282619,1735655443290,-500.0,0.00019178,2]
[347282620,1735655443299,-500.0,0.00019178,2]
[347282621,1735655443308,-500.0,0.00019178,2]
[347282622,1735655443317,-500.0,0.00019178,2]
[347282624,1735655443327,-500.0,0.00019178,2]
[347282626,1735655443336,-500.0,0.00019178,2]
[347282628,1735655443345,-502.32157473,0.00019178,2]
[347282630,1735655443354,-500.0,0.00019178,2]
[347282632,1735655443363,-437.31388702,0.00019178,2]
[347282634,1735655443372,-500.0,0.00019178,2]
[347282636,1735655443381,-500.0,0.00019178,2]
[347282637,1735655443390,-1143.09,0.00019178,2]
[347282638,1735655443399,-500.0,0.00019178,2]
[347282639,1735655443408,-500.0,0.00019178,2]
[347282640,1735655443417,-640.04,0.00019178,2]
[347282641,1735655443426,-500.0,0.00019178,2]
[347282642,1735655443435,-500.0,0.00019178,2]
[347282643,1735655443444,-500.0,0.00019178,2]
[347282644,1735655443453,-150.0,0.00019178,2]
[347282645,1735655443462,-486.65392734,0.00019198,2]
[347282646,1735655443471,-500.0,0.00019255,3]
[347282647,1735655443480,-500.0,0.0001926,3]
[347282648,1735655443489,-500.0,0.0001926,3]
[347282649,1735655443499,-500.0,0.0001926,3]
[347282650,1735655443509,-486.65392734,0.000194,2]
[347282651,1735655443518,-500.0,0.00019451,3]
[347282652,1735655443527,-500.89155474,0.00019451,3]
[347282653,1735655443539,-500.0,0.00019451,3]
[347282654,1735655443548,-179.6,0.00019451,3]
[347282655,1735655443558,-546.35454753,0.00019451,2]
[347282656,1735655443567,-624.21904398,0.00019451,2]
[347282657,1735655443577,-500.0,0.00019451,2]
[347282658,1735655443587,-500.0,0.00019452,3]
[347282659,1735655443597,-500.0,0.00019452,3]
[347282660,1735655443606,-500.0,0.00019452,3]
[347282661,1735655443617,-500.0,0.00019452,3]
[347282662,1735655443626,-570.32046128,0.00019452,3]
[347282663,1735655443636,-632.08020098,0.00019452,3]
[347282664,1735655443645,-500.0,0.00019452,3]
[347282665,1735655443654,-515.3229847,0.00019452,3]
[347282666,1735655443662,-516.68385415,0.00019452,3]
[347282667,1735655443672,-500.0,0.00019452,3]
[347282668,1735655443681,-500.0,0.00019452,3]
[347282669,1735655443691,-317.63455287,0.00019452,3]
[347282670,1735655443701,-500.0,0.00019452,3]
[347282671,1735655443709,-500.0,0.00019452,3]
[347282672,1735655443719,-500.0,0.00019452,3]
[347282673,1735655443728,-500.0,0.00019452,3]
[347282674,1735655443737,-500.0,0.00019452,2]
[347282675,1735655443746,-500.0,0.00019452,3]
[347282676,1735655443758,-500.0,0.00019452,3]
[347282677,1735655443767,-617.62355655,0.00019452,3]
[347282678,1735655443776,-500.0,0.00019452,3]
[347282679,1735655443786,-500.0,0.00019452,3]
[347282680,1735655443795,-500.0,0.00019452,3]
[347282681,1735655443804,-500.0,0.00019452,3]
[347282682,1735655443813,-500.0,0.00019452,3]
[347282683,1735655443822,-500.0,0.00019452,3]
[347282684,1735655443831,-644.35892676,0.00019452,3]
[347282685,1735655443840,-500.0,0.00019452,3]
[347282686,1735655443849,-500.0,0.00019452,3]
[347282688,1735655443858,-178.61006138,0.00019452,3]
[347282689,1735655443867,-501.19,0.00019452,3]
[347282690,1735655443876,-500.0,0.00019452,3]
[347282691,1735655443885,-500.0,0.00019452,3]
[347282692,1735655443894,-500.0,0.00019452,3]
[347282693,1735655443904,-500.0,0.00019452,3]
[347282694,1735655443913,-500.0,0.00019452,3]
[347282695,1735655443922,-500.0,0.00019452,3]
[347282696,1735655443931,-500.0,0.00019452,3]
[347282697,1735655443941,-500.0,0.00019452,3]
[347282698,1735655443950,-500.0,0.00019452,3]
[347282699,1735655443959,-500.0,0.00019452,3]
[347282700,1735655443968,-500.0,0.00019452,3]
[347282701,1735655443977,-266.03646334,0.00019452,3]
[347282702,1735655443985,-500.0,0.00019452,3]
[347282703,1735655443994,-574.21,0.00019452,3]
[347282704,1735655444005,-500.0,0.00019452,3]
[347282705,1735655444015,-519.82,0.00019452,3]
[347282706,1735655444023,-500.0,0.00019452,3]
[347282707,1735655444033,-500.0,0.00019452,3]
[347282708,1735655444042,-500.0,0.00019452,3]
[347282709,1735655444051,-500.0,0.00019452,3]
[347282710,1735655444060,-500.0,0.00019452,3]
[347282711,1735655444069,-426.4646226,0.00019452,3]
[347282715,1735655444762,-500.0,0.00018999,2]
[347282716,1735655444772,-500.0,0.00018999,2]
[347282717,1735655444782,-500.0,0.00018999,2]
[347282718,1735655444791,-566.83184608,0.00018999,2]
[347282719,1735655444800,-500.0,0.00018999,2]
[347282720,1735655444810,-164.11399881,0.00018999,2]
[347282721,1735655444819,-266.13045963,0.00018999,2]
[347282722,1735655444829,-500.0,0.00018999,2]
[347282723,1735655444838,-500.0,0.00018999,2]
[347282724,1735655444847,-500.0,0.00018999,2]
[347282725,1735655444856,-500.0,0.00018999,2]
[347282726,1735655444866,-500.0,0.00018999,2]
[347282727,1735655444875,-500.0,0.00018999,2]
[347282728,1735655444885,-500.0,0.00018999,2]
[347282729,1735655444894,-500.0,0.00018999,2]
[347282730,1735655444904,-500.0,0.00018999,2]
[347282731,1735655444913,-500.0,0.00018999,2]
[347282732,1735655444922,-500.0,0.00018999,2]
[347282733,1735655444931,-500.0,0.00018999,2]
[347282734,1735655444940,-500.0,0.00018999,2]
[347282735,1735655444949,-500.0,0.00018999,2]
[347282736,1735655444959,-500.0,0.00018999,2]
[347282737,1735655444968,-500.0,0.00018999,2]
[347282738,1735655444977,-500.0,0.00018999,2]
[347282739,1735655444986,-500.0,0.00018999,2]
[347282740,1735655444996,-500.0,0.00018999,2]
[347282741,1735655445006,-500.0,0.00018999,2]
[347282742,1735655445016,-500.0,0.00018999,2]
[347282743,1735655445025,-500.0,0.00018999,2]
[347282744,1735655445034,-500.0,0.00018999,2]
[347282745,1735655445044,-500.0,0.00018999,2]
[347282746,1735655445053,-500.0,0.00018999,2]
[347282747,1735655445062,-500.0,0.00018999,2]
[347282748,1735655445071,-500.0,0.00018999,2]
[347282749,1735655445080,-500.0,0.00018999,2]
[347282750,1735655445089,-500.0,0.00018999,2]
[347282751,1735655445099,-500.0,0.00018999,2]
[347282752,1735655445108,-500.0,0.00018999,2]
[347282753,1735655445117,-500.0,0.00018999,2]
[347282754,1735655445126,-500.0,0.00018999,2]
[347282755,1735655445136,-500.0,0.00018999,2]
[347282756,1735655445145,-505.84419698,0.00018999,2]
[347282757,1735655445154,-500.0,0.00018999,2]
[347282758,1735655445163,-500.0,0.00018999,2]
[347282759,1735655445172,-500.0,0.00018999,2]
[347282760,1735655445182,-500.0,0.00018999,2]
[347282761,1735655445191,-500.0,0.00018999,2]
[347282762,1735655445200,-500.0,0.00018999,2]
[347282763,1735655445210,-500.0,0.00018999,2]
[347282764,1735655445218,-500.0,0.00018999,2]
[347282765,1735655445227,-500.0,0.00018999,2]
[347282766,1735655445237,-500.0,0.00018999,2]
[347282767,1735655445246,-500.0,0.00018999,2]
[347282768,1735655445257,-500.0,0.00018999,2]
[347282769,1735655445266,-500.0,0.00018999,2]
[347282770,1735655445275,-500.0,0.00018999,2]
[347282771,1735655445285,-500.0,0.00018999,2]
[347282772,1735655445294,-500.0,0.00018999,2]
[347282773,1735655445303,-500.0,0.00018999,2]
[347282774,1735655445312,-500.0,0.00018999,2]
[347282775,1735655445322,-500.0,0.00018999,2]
[347282776,1735655445331,-500.0,0.00018999,2]
[347282777,1735655445340,-346.14200481,0.00018999,2]
[347282778,1735655445350,-500.0,0.00018999,2]
[347282779,1735655445359,-500.0,0.00018999,2]
[347282780,1735655445368,-500.0,0.00018999,2]
[347282781,1735655445377,-500.0,0.00018999,2]
[347282782,1735655445387,-500.0,0.00018999,2]
[347282783,1735655445396,-500.0,0.00018999,2]
[347282784,1735655445405,-500.0,0.00018999,2]
[347282785,1735655445414,-500.0,0.00018999,2]
[347282786,1735655445423,-500.0,0.00019178,2]
[347282787,1735655445433,-73.5353774,0.00019452,3]
[347282788,1735655445442,-500.0,0.00019452,3]
[347282789,1735655445451,-500.0,0.00019452,3]
[347282790,1735655445460,-692.44,0.00019452,3]
[347282791,1735655445469,-500.0,0.00019452,3]
[347282792,1735655445479,-4748.08,0.00019452,3]
[347282793,1735655445488,-500.0,0.00019452,3]
[347282794,1735655445497,-500.0,0.00019452,3]
[347282795,1735655445507,-1072.13,0.00019452,3]
[347282796,1735655445516,-268.75052426,0.00019452,3]
[347282797,1735655445525,-976.96,0.00019452,3]
[347282798,1735655445535,-500.0,0.00019452,3]
[347282799,1735655445548,-503.23685219,0.00019452,3]
[347282800,1735655445557,-500.0,0.00019452,3]
[347282801,1735655445566,-500.0,0.00019452,3]
[347282802,1735655445577,-500.0,0.00019452,3]
[347282803,1735655445586,-500.0,0.00019452,3]
[347282804,1735655445595,-505.53710305,0.00019452,3]
[347282805,1735655445604,-514.47,0.00019452,3]
[347282806,1735655445613,-500.0,0.00019452,3]
[347282807,1735655445625,-500.0,0.00019452,3]
[347282808,1735655445636,-556.71,0.00019452,3]
[347282809,1735655445645,-500.0,0.00019452,3]
[347282810,1735655445654,-500.0,0.00019452,3]
[347282811,1735655445663,-885.61,0.00019452,3]
[347282812,1735655445672,-500.88464733,0.00019452,3]
[347282813,1735655445682,-816.73,0.00019452,3]
[347282814,1735655445692,-501.82365361,0.00019452,3]
[347282815,1735655445701,-743.7,0.00019452,3]
[347282816,1735655445711,-500.0,0.00019452,3]
[347282817,1735655445720,-2907.35,0.00019452,3]
[347282818,1735655445729,-500.0,0.00019452,3]
[347282819,1735655445738,-9274.5,0.00019452,3]
[347282820,1735655445747,-499.40260275,0.00019452,3]
[347282821,1735655445758,-500.0,0.00019452,3]
[347282822,1735655445767,-744.3,0.00019452,3]
[347282823,1735655445776,-500.0,0.00019452,3]
[347282824,1735655445786,-500.0,0.00019452,3]
[347282825,1735655445795,-323.75931422,0.00019452,3]
[347282826,1735655445804,-500.0,0.00019452,3]
[347282827,1735655445813,-2632.0,0.00019452,3]
[347282828,1735655445822,-500.0,0.00019452,3]
[347282829,1735655445831,-500.0,0.00019452,3]
[347282830,1735655445840,-500.0,0.00019452,3]
[347282831,1735655445849,-500.0,0.00019452,3]
[347282832,1735655445859,-500.0,0.00019452,3]
[347282833,1735655445868,-500.0,0.00019452,3]
[347282834,1735655445877,-500.0,0.00019452,3]
[347282835,1735655445886,-27170.0761658,0.00019452,3]
[347282836,1735655445899,-1072.53663026,0.00019452,3]
[347282837,1735655445948,-501.03810293,0.00019178,2]
[347282838,1735655445956,-1498.96189707,0.00019452,3]
[347282842,1735655446659,-4505.6522428,0.00018809,2]
[347282843,1735655446668,-500.0,0.00019178,2]
[347282844,1735655446677,-12424.22341198,0.00019452,3]
[347282845,1735655446689,-257.74748322,0.00019452,3]
[347282850,1735655664731,500.0,0.00022555,120]
[347282856,1735656317766,278.77426,0.000101,2]
[347282857,1735656376840,445.65207434,9.999e-05,2]
[347282858,1735656399089,-294.17715583,0.000101,2]
[347282859,1735656408172,1308.44536904,9.999e-05,2]
[347282860,1735656423724,1308.44536904,9.999e-05,2]
[347282861,1735656439990,1308.44536904,9.999e-05,2]
[347282862,1735656448264,4327.04858417,9.999e-05,2]
[347282863,1735656457064,1144.88108344,9.999e-05,2]
[347282864,1735656457098,163.5642856,9.999e-05,2]
[347282865,1735656465034,2365.55627573,9.999e-05,2]
[347282866,1735656473143,196.22423191,9.999e-05,2]
[347282867,1735656481056,196.22423191,9.999e-05,2]
[347282868,1735656489200,196.22423191,9.999e-05,2]
[347282869,1735656497106,196.22423191,9.999e-05,2]
[347282870,1735656505433,196.22423191,9.999e-05,2]
[347282871,1735656521332,196.22423191,9.999e-05,2]
[347282872,1735656537562,196.22423191,9.999e-05,2]